[Event "Titled Tuesday Blitz May 10 Early 2022"]
[White "Dmitrenko, Viktor"]
[Black "Cagara, Paulina"]
[WhiteFideId "14110270"]
[BlackFideId "1124870"]
[WhiteElo "2218"]
[BlackElo "1800"]
[Result "0-1"]
[Round "08"]
[TimeControl "180+1"]
[Date "2022.05.11"]
[WhiteClock "0:00:12"]
[BlackClock "0:00:27"]

1. Nf3 {[%clk 0:03:00]}  f5 {[%clk 0:02:58]} 2. d4 {[%clk 0:02:59]}  Nf6 {[%clk 0:02:58]} 3. g3 {[%clk 0:02:55]}  g6 {[%clk 0:02:56]} 4. c3 {[%clk 0:02:54]}  Bg7 {[%clk 0:02:55]} 5. Qb3 {[%clk 0:02:54]}  e6 {[%clk 0:02:51]} 6. Bg2 {[%clk 0:02:54]}  O-O {[%clk 0:02:50]} 7. O-O {[%clk 0:02:53]}  d5 {[%clk 0:02:49]} 8. a4 {[%clk 0:02:52]}  Nbd7 {[%clk 0:02:48]} 9. a5 {[%clk 0:02:51]}  c5 {[%clk 0:02:48]} 10. Bf4 {[%clk 0:02:47]}  Ne4 {[%clk 0:02:38]} 11. Na3 {[%clk 0:02:41]}  h6 {[%clk 0:02:25]} 12. Nb5 {[%clk 0:02:38]}  g5 {[%clk 0:02:24]} 13. Bc7 {[%clk 0:02:30]}  Qe7 {[%clk 0:02:22]} 14. Qc2 {[%clk 0:01:51]}  a6 {[%clk 0:02:21]} 15. Na3 {[%clk 0:01:48]}  Ndf6 {[%clk 0:02:08]} 16. Be5 {[%clk 0:01:46]}  Ng4 {[%clk 0:02:03]} 17. Bxg7 {[%clk 0:01:44]}  Qxg7 {[%clk 0:02:03]} 18. c4 {[%clk 0:01:34]}  cxd4 {[%clk 0:01:59]} 19. cxd5 {[%clk 0:01:33]}  exd5 {[%clk 0:01:59]} 20. Qb3 {[%clk 0:01:31]}  Be6 {[%clk 0:01:58]} 21. Nc2 {[%clk 0:01:30]}  Ne5 {[%clk 0:01:45]} 22. Ncxd4 {[%clk 0:01:19]}  Nxf3+ {[%clk 0:01:45]} 23. Nxf3 {[%clk 0:01:15]}  Bf7 {[%clk 0:01:41]} 24. Rfd1 {[%clk 0:01:09]}  Rab8 {[%clk 0:01:35]} 25. Nd4 {[%clk 0:01:06]}  Qe5 {[%clk 0:01:28]} 26. Rac1 {[%clk 0:01:00]}  f4 {[%clk 0:01:23]} 27. Qb6 {[%clk 0:00:40]}  fxg3 {[%clk 0:01:21]} 28. hxg3 {[%clk 0:00:37]}  Nd6 {[%clk 0:01:06]} 29. e3 {[%clk 0:00:25]}  Kh7 {[%clk 0:00:59]} 30. b3 {[%clk 0:00:24]}  Bh5 {[%clk 0:00:57]} 31. Rc7+ {[%clk 0:00:22]}  Kh8 {[%clk 0:00:54]} 32. Rdc1 {[%clk 0:00:22]}  Qf6 {[%clk 0:00:45]} 33. f4 {[%clk 0:00:20]}  gxf4 {[%clk 0:00:44]} 34. exf4 {[%clk 0:00:18]}  Rg8 {[%clk 0:00:39]} 35. Rd7 {[%clk 0:00:17]}  Rxg3 {[%clk 0:00:29]} 36. Rxd6 {[%clk 0:00:15]}  Rxg2+ {[%clk 0:00:28]} 37. Kxg2 {[%clk 0:00:16]}  Rg8+ {[%clk 0:00:27]} 38. Kf2 {[%clk 0:00:12]}  Qxf4+ {[%clk 0:00:27]} 0-1


[Site "https://www.chess.com"]

[Event "Titled Tuesday Blitz May 10 Early 2022"]
[White "Gatterer, Florian"]
[Black "Shukhman, Anna"]
[WhiteFideId "811688"]
[BlackFideId "54180058"]
[WhiteElo "2218"]
[BlackElo "1726"]
[Result "1-0"]
[Round "08"]
[TimeControl "180+1"]
[Date "2022.05.11"]
[WhiteClock "0:00:16"]
[BlackClock "0:00:11"]

1. e4 {[%clk 0:03:00]}  c5 {[%clk 0:02:58]} 2. Nf3 {[%clk 0:02:58]}  e6 {[%clk 0:02:57]} 3. d4 {[%clk 0:02:57]}  cxd4 {[%clk 0:02:58]} 4. Nxd4 {[%clk 0:02:57]}  a6 {[%clk 0:02:58]} 5. c4 {[%clk 0:02:52]}  Nf6 {[%clk 0:02:57]} 6. Nc3 {[%clk 0:02:50]}  Bb4 {[%clk 0:02:56]} 7. Qd3 {[%clk 0:02:50]}  Nc6 {[%clk 0:02:49]} 8. Nc2 {[%clk 0:02:49]}  Be7 {[%clk 0:02:45]} 9. Be2 {[%clk 0:02:47]}  O-O {[%clk 0:02:44]} 10. O-O {[%clk 0:02:42]}  Qc7 {[%clk 0:02:44]} 11. b3 {[%clk 0:02:33]}  b6 {[%clk 0:02:39]} 12. Bb2 {[%clk 0:02:30]}  Bb7 {[%clk 0:02:38]} 13. Rac1 {[%clk 0:02:29]}  Rad8 {[%clk 0:02:33]} 14. Qg3 {[%clk 0:02:00]}  Qxg3 {[%clk 0:01:56]} 15. hxg3 {[%clk 0:02:00]}  Ne5 {[%clk 0:01:48]} 16. Na4 {[%clk 0:01:50]}  Ng6 {[%clk 0:01:35]} 17. Nxb6 {[%clk 0:01:45]}  Nxe4 {[%clk 0:01:32]} 18. Bf3 {[%clk 0:01:42]}  d5 {[%clk 0:01:30]} 19. cxd5 {[%clk 0:01:38]}  exd5 {[%clk 0:01:29]} 20. Nd4 {[%clk 0:01:38]}  Nd2 {[%clk 0:01:07]} 21. Rfd1 {[%clk 0:01:32]}  Nxf3+ {[%clk 0:01:04]} 22. gxf3 {[%clk 0:01:32]}  Rfe8 {[%clk 0:01:03]} 23. Nf5 {[%clk 0:01:30]}  Bf8 {[%clk 0:01:01]} 24. Rc7 {[%clk 0:01:29]}  Ne5 {[%clk 0:00:57]} 25. Rxb7 {[%clk 0:01:23]}  Nxf3+ {[%clk 0:00:57]} 26. Kf1 {[%clk 0:01:19]}  d4 {[%clk 0:00:45]} 27. Nd7 {[%clk 0:01:10]}  d3 {[%clk 0:00:35]} 28. Rxd3 {[%clk 0:01:08]}  Re1+ {[%clk 0:00:33]} 29. Kg2 {[%clk 0:01:05]}  Ng5 {[%clk 0:00:32]} 30. Re3 {[%clk 0:00:56]}  Rb1 {[%clk 0:00:30]} 31. Be5 {[%clk 0:00:49]}  g6 {[%clk 0:00:29]} 32. Nxf8 {[%clk 0:00:49]}  Rdd1 {[%clk 0:00:20]} 33. Nh6+ {[%clk 0:00:31]}  Kxf8 {[%clk 0:00:19]} 34. Rb8+ {[%clk 0:00:29]}  Ke7 {[%clk 0:00:19]} 35. Bf4+ {[%clk 0:00:26]}  Kf6 {[%clk 0:00:19]} 36. Bxg5+ {[%clk 0:00:25]}  Kxg5 {[%clk 0:00:19]} 37. Nxf7+ {[%clk 0:00:25]}  Kf6 {[%clk 0:00:19]} 38. Nd8 {[%clk 0:00:23]}  Rb2 {[%clk 0:00:17]} 39. Rf3+ {[%clk 0:00:21]}  Kg7 {[%clk 0:00:16]} 40. a4 {[%clk 0:00:21]}  Rbb1 {[%clk 0:00:15]} 41. Rb7+ {[%clk 0:00:20]}  Kh6 {[%clk 0:00:14]} 42. Re3 {[%clk 0:00:20]}  Rg1+ {[%clk 0:00:13]} 43. Kf3 {[%clk 0:00:20]}  Rgd1 {[%clk 0:00:13]} 44. Ne6 {[%clk 0:00:19]}  g5 {[%clk 0:00:12]} 45. Nf8 {[%clk 0:00:17]}  Rd5 {[%clk 0:00:11]} 46. Rxh7# {[%clk 0:00:16]} 1-0


[Site "https://www.chess.com"]

[Event "Titled Tuesday Blitz May 10 Early 2022"]
[White "Hua, Lefong"]
[Black "Le Ruyet, Leopold"]
[WhiteFideId "2602253"]
[BlackFideId "645923"]
[WhiteElo "2597"]
[BlackElo "2276"]
[Result "1-0"]
[Round "08"]
[TimeControl "180+1"]
[Date "2022.05.11"]
[WhiteClock "0:00:09"]
[BlackClock "0:00:05"]

1. d4 {[%clk 0:03:00]}  Nf6 {[%clk 0:02:59]} 2. c4 {[%clk 0:03:01]}  g6 {[%clk 0:02:58]} 3. Nc3 {[%clk 0:03:02]}  d5 {[%clk 0:02:59]} 4. cxd5 {[%clk 0:03:03]}  Nxd5 {[%clk 0:02:59]} 5. e4 {[%clk 0:03:03]}  Nxc3 {[%clk 0:02:59]} 6. bxc3 {[%clk 0:03:04]}  Bg7 {[%clk 0:02:59]} 7. Nf3 {[%clk 0:03:05]}  c5 {[%clk 0:02:59]} 8. Rb1 {[%clk 0:03:04]}  O-O {[%clk 0:02:52]} 9. Be2 {[%clk 0:03:03]}  b6 {[%clk 0:02:52]} 10. O-O {[%clk 0:03:03]}  Nd7 {[%clk 0:02:52]} 11. Bg5 {[%clk 0:02:57]}  Bb7 {[%clk 0:02:49]} 12. Qd3 {[%clk 0:02:56]}  Re8 {[%clk 0:02:36]} 13. Qe3 {[%clk 0:02:52]}  Qc7 {[%clk 0:02:35]} 14. e5 {[%clk 0:02:41]}  e6 {[%clk 0:02:30]} 15. Bh6 {[%clk 0:02:36]}  Bh8 {[%clk 0:02:28]} 16. h4 {[%clk 0:02:36]}  Rac8 {[%clk 0:01:58]} 17. h5 {[%clk 0:02:33]}  cxd4 {[%clk 0:01:48]} 18. cxd4 {[%clk 0:02:34]}  Qc3 {[%clk 0:01:46]} 19. hxg6 {[%clk 0:02:29]}  fxg6 {[%clk 0:01:31]} 20. Qf4 {[%clk 0:02:13]}  Qc2 {[%clk 0:01:20]} 21. Bb5 {[%clk 0:01:45]}  Re7 {[%clk 0:01:12]} 22. Rbc1 {[%clk 0:01:26]}  Qf5 {[%clk 0:01:11]} 23. Qh4 {[%clk 0:01:26]}  Rce8 {[%clk 0:00:36]} 24. Rc7 {[%clk 0:00:53]}  Bxf3 {[%clk 0:00:35]} 25. gxf3 {[%clk 0:00:48]}  Nxe5 {[%clk 0:00:31]} 26. dxe5 {[%clk 0:00:42]}  Rxc7 {[%clk 0:00:30]} 27. Bxe8 {[%clk 0:00:41]}  Qxf3 {[%clk 0:00:17]} 28. Qf4 {[%clk 0:00:31]}  Qxf4 {[%clk 0:00:16]} 29. Bxf4 {[%clk 0:00:32]}  Rc4 {[%clk 0:00:16]} 30. Bg3 {[%clk 0:00:32]}  Kf8 {[%clk 0:00:14]} 31. Bb5 {[%clk 0:00:27]}  Rc5 {[%clk 0:00:14]} 32. a4 {[%clk 0:00:23]}  Bxe5 {[%clk 0:00:15]} 33. Bxe5 {[%clk 0:00:19]}  Rxe5 {[%clk 0:00:16]} 34. Rc1 {[%clk 0:00:19]}  Rc5 {[%clk 0:00:15]} 35. Rd1 {[%clk 0:00:14]}  Rd5 {[%clk 0:00:14]} 36. Re1 {[%clk 0:00:13]}  Ke7 {[%clk 0:00:13]} 37. Kg2 {[%clk 0:00:13]}  Kd6 {[%clk 0:00:12]} 38. Kf3 {[%clk 0:00:12]}  Rf5+ {[%clk 0:00:12]} 39. Kg3 {[%clk 0:00:13]}  Rg5+ {[%clk 0:00:12]} 40. Kh2 {[%clk 0:00:13]}  Rh5+ {[%clk 0:00:12]} 41. Kg2 {[%clk 0:00:13]}  Rg5+ {[%clk 0:00:13]} 42. Kf1 {[%clk 0:00:14]}  Rf5 {[%clk 0:00:13]} 43. Re3 {[%clk 0:00:14]}  Rc5 {[%clk 0:00:10]} 44. Rh3 {[%clk 0:00:13]}  h5 {[%clk 0:00:09]} 45. Ke2 {[%clk 0:00:11]}  g5 {[%clk 0:00:10]} 46. Rxh5 {[%clk 0:00:09]}  Re5+ {[%clk 0:00:10]} 47. Kf1 {[%clk 0:00:09]}  Kc5 {[%clk 0:00:10]} 48. Rh7 {[%clk 0:00:08]}  a5 {[%clk 0:00:08]} 49. Rc7+ {[%clk 0:00:08]}  Kb4 {[%clk 0:00:05]} 50. Rc6 {[%clk 0:00:09]} 1-0


[Site "https://www.chess.com"]

[Event "Titled Tuesday Blitz May 10 Early 2022"]
[White "Ivanisevic, Ivan"]
[Black "Khabinets, Ivan"]
[WhiteFideId "912417"]
[BlackFideId "14115980"]
[WhiteElo "2495"]
[BlackElo "2114"]
[Result "0-1"]
[Round "08"]
[TimeControl "180+1"]
[Date "2022.05.11"]
[WhiteClock "0:00:04"]
[BlackClock "0:00:18"]

1. e4 {[%clk 0:02:57]}  e5 {[%clk 0:02:57]} 2. Ne2 {[%clk 0:02:57]}  Nc6 {[%clk 0:02:53]} 3. f4 {[%clk 0:02:50]}  Nf6 {[%clk 0:02:39]} 4. fxe5 {[%clk 0:02:33]}  Nxe4 {[%clk 0:02:14]} 5. d3 {[%clk 0:02:28]}  Nc5 {[%clk 0:02:13]} 6. d4 {[%clk 0:02:19]}  Ne4 {[%clk 0:02:13]} 7. d5 {[%clk 0:01:45]}  Bc5 {[%clk 0:02:11]} 8. Qd3 {[%clk 0:01:39]}  Nf2 {[%clk 0:01:54]} 9. Qc4 {[%clk 0:01:28]}  Nxh1 {[%clk 0:01:49]} 10. Qxc5 {[%clk 0:01:22]}  Nxe5 {[%clk 0:01:44]} 11. d6 {[%clk 0:01:17]}  cxd6 {[%clk 0:01:33]} 12. Qxd6 {[%clk 0:01:18]}  Qh4+ {[%clk 0:01:33]} 13. Ng3 {[%clk 0:00:47]}  Kd8 {[%clk 0:01:28]} 14. Nc3 {[%clk 0:00:35]}  Nxg3 {[%clk 0:01:24]} 15. hxg3 {[%clk 0:00:34]}  Qxg3+ {[%clk 0:01:24]} 16. Kd1 {[%clk 0:00:34]}  Qg4+ {[%clk 0:00:40]} 17. Be2 {[%clk 0:00:34]}  Qe6 {[%clk 0:00:40]} 18. Qd4 {[%clk 0:00:27]}  b6 {[%clk 0:00:38]} 19. Bf4 {[%clk 0:00:25]}  f6 {[%clk 0:00:37]} 20. a4 {[%clk 0:00:16]}  Bb7 {[%clk 0:00:36]} 21. a5 {[%clk 0:00:16]}  Re8 {[%clk 0:00:34]} 22. Kd2 {[%clk 0:00:12]}  Nc6 {[%clk 0:00:28]} 23. Qf2 {[%clk 0:00:10]}  g5 {[%clk 0:00:26]} 24. Bh2 {[%clk 0:00:08]}  Nxa5 {[%clk 0:00:26]} 25. Rd1 {[%clk 0:00:07]}  Rc8 {[%clk 0:00:26]} 26. Qg3 {[%clk 0:00:04]}  Rxc3 {[%clk 0:00:21]} 27. Kxc3 {[%clk 0:00:05]}  Qxe2 {[%clk 0:00:18]} 28. Qc7+ {[%clk 0:00:05]}  Ke7 {[%clk 0:00:18]} 29. Rxd7+ {[%clk 0:00:05]}  Ke6 {[%clk 0:00:18]} 30. Qd6+ {[%clk 0:00:04]}  Kf5 {[%clk 0:00:18]} 0-1


[Site "https://www.chess.com"]

[Event "Titled Tuesday Blitz May 10 Early 2022"]
[White "Kaasen, Tor Fredrik"]
[Black "Hakobyan, Aram"]
[WhiteFideId "1516647"]
[BlackFideId "13306677"]
[WhiteElo "2335"]
[BlackElo "2557"]
[Result "0-1"]
[Round "08"]
[TimeControl "180+1"]
[Date "2022.05.10"]
[WhiteClock "0:00:16"]
[BlackClock "0:00:55"]

1. d4 {[%clk 0:03:00]}  Nf6 {[%clk 0:02:59]} 2. c4 {[%clk 0:03:01]}  e6 {[%clk 0:02:59]} 3. Nc3 {[%clk 0:03:02]}  Bb4 {[%clk 0:03:00]} 4. f3 {[%clk 0:03:02]}  d5 {[%clk 0:02:59]} 5. a3 {[%clk 0:03:02]}  Bd6 {[%clk 0:02:59]} 6. e4 {[%clk 0:03:01]}  c5 {[%clk 0:03:00]} 7. dxc5 {[%clk 0:02:58]}  Bxc5 {[%clk 0:03:00]} 8. e5 {[%clk 0:02:58]}  Nfd7 {[%clk 0:03:00]} 9. f4 {[%clk 0:02:58]}  dxc4 {[%clk 0:02:48]} 10. Bxc4 {[%clk 0:02:55]}  O-O {[%clk 0:02:43]} 11. Nf3 {[%clk 0:02:55]}  a6 {[%clk 0:02:41]} 12. Bd3 {[%clk 0:02:54]}  h6 {[%clk 0:02:33]} 13. Qe2 {[%clk 0:02:52]}  Nc6 {[%clk 0:02:31]} 14. Be3 {[%clk 0:02:39]}  Qb6 {[%clk 0:02:21]} 15. Na4 {[%clk 0:02:20]}  Qa5+ {[%clk 0:02:19]} 16. b4 {[%clk 0:02:20]}  Qxa4 {[%clk 0:02:19]} 17. bxc5 {[%clk 0:02:21]}  Nxc5 {[%clk 0:02:15]} 18. Bc2 {[%clk 0:01:54]}  Qa5+ {[%clk 0:02:13]} 19. Bd2 {[%clk 0:01:55]}  Qc7 {[%clk 0:02:08]} 20. O-O {[%clk 0:01:53]}  b6 {[%clk 0:02:02]} 21. Kh1 {[%clk 0:01:47]}  Rd8 {[%clk 0:01:58]} 22. Bc3 {[%clk 0:01:40]}  Ne7 {[%clk 0:01:57]} 23. Nd4 {[%clk 0:01:32]}  Na4 {[%clk 0:01:20]} 24. Bxa4 {[%clk 0:01:18]}  Qxc3 {[%clk 0:01:20]} 25. Rac1 {[%clk 0:01:18]}  Qxa3 {[%clk 0:01:19]} 26. Bc6 {[%clk 0:00:34]}  Ra7 {[%clk 0:01:05]} 27. Ra1 {[%clk 0:00:29]}  Qc5 {[%clk 0:01:01]} 28. Rfc1 {[%clk 0:00:29]}  Qxd4 {[%clk 0:01:01]} 29. Rd1 {[%clk 0:00:30]}  Nxc6 {[%clk 0:00:58]} 30. Rxd4 {[%clk 0:00:30]}  Nxd4 {[%clk 0:00:58]} 31. Qc4 {[%clk 0:00:23]}  Rad7 {[%clk 0:00:58]} 32. h4 {[%clk 0:00:18]}  h5 {[%clk 0:00:57]} 33. Kh2 {[%clk 0:00:18]}  b5 {[%clk 0:00:56]} 34. Qc5 {[%clk 0:00:18]}  Bb7 {[%clk 0:00:56]} 35. Rd1 {[%clk 0:00:16]}  Nf3+ {[%clk 0:00:55]} 0-1


[Site "https://www.chess.com"]

[Event "Titled Tuesday Blitz May 10 Early 2022"]
[White "Keller, Peter"]
[Black "Tania, Sachdev"]
[WhiteFideId "1272105"]
[BlackFideId "5007844"]
[WhiteElo "2275"]
[BlackElo "2280"]
[Result "1-0"]
[Round "08"]
[TimeControl "180+1"]
[Date "2022.05.11"]
[WhiteClock "0:00:11"]
[BlackClock "0:00:03"]

1. e4 {[%clk 0:02:58]}  e5 {[%clk 0:02:58]} 2. Nf3 {[%clk 0:02:56]}  Nc6 {[%clk 0:02:58]} 3. Bc4 {[%clk 0:02:53]}  Nf6 {[%clk 0:02:57]} 4. d3 {[%clk 0:02:53]}  Bc5 {[%clk 0:02:57]} 5. O-O {[%clk 0:02:52]}  d6 {[%clk 0:02:48]} 6. a4 {[%clk 0:02:47]}  a5 {[%clk 0:02:44]} 7. c3 {[%clk 0:02:47]}  O-O {[%clk 0:02:44]} 8. Nbd2 {[%clk 0:02:45]}  Ba7 {[%clk 0:02:39]} 9. h3 {[%clk 0:02:40]}  Be6 {[%clk 0:02:39]} 10. Re1 {[%clk 0:02:29]}  h6 {[%clk 0:02:38]} 11. Bb5 {[%clk 0:02:19]}  Ne7 {[%clk 0:02:33]} 12. d4 {[%clk 0:02:20]}  c6 {[%clk 0:02:33]} 13. Bd3 {[%clk 0:02:09]}  Ng6 {[%clk 0:02:33]} 14. Nf1 {[%clk 0:02:07]}  Nh5 {[%clk 0:01:53]} 15. d5 {[%clk 0:01:33]}  Bd7 {[%clk 0:01:47]} 16. Be3 {[%clk 0:01:02]}  Nhf4 {[%clk 0:01:40]} 17. Bc2 {[%clk 0:00:53]}  cxd5 {[%clk 0:01:34]} 18. exd5 {[%clk 0:00:53]}  f5 {[%clk 0:01:34]} 19. b4 {[%clk 0:00:43]}  axb4 {[%clk 0:01:30]} 20. cxb4 {[%clk 0:00:44]}  Qf6 {[%clk 0:01:27]} 21. b5 {[%clk 0:00:42]}  Kh8 {[%clk 0:01:17]} 22. b6 {[%clk 0:00:41]}  Bb8 {[%clk 0:01:17]} 23. a5 {[%clk 0:00:39]}  Qf7 {[%clk 0:01:12]} 24. Bb3 {[%clk 0:00:29]}  e4 {[%clk 0:01:12]} 25. Nd4 {[%clk 0:00:24]}  Nd3 {[%clk 0:01:12]} 26. Ne6 {[%clk 0:00:21]}  Bxe6 {[%clk 0:01:00]} 27. dxe6 {[%clk 0:00:22]}  Qe7 {[%clk 0:01:00]} 28. Re2 {[%clk 0:00:21]}  Nge5 {[%clk 0:00:43]} 29. Bd5 {[%clk 0:00:20]}  f4 {[%clk 0:00:30]} 30. Bd4 {[%clk 0:00:18]}  e3 {[%clk 0:00:25]} 31. fxe3 {[%clk 0:00:16]}  f3 {[%clk 0:00:26]} 32. gxf3 {[%clk 0:00:13]}  Qg5+ {[%clk 0:00:22]} 33. Rg2 {[%clk 0:00:13]}  Qh5 {[%clk 0:00:22]} 34. f4 {[%clk 0:00:13]}  Qxh3 {[%clk 0:00:16]} 35. fxe5 {[%clk 0:00:11]}  dxe5 {[%clk 0:00:16]} 36. Qxd3 {[%clk 0:00:10]}  exd4 {[%clk 0:00:16]} 37. Qxd4 {[%clk 0:00:11]}  Rg8 {[%clk 0:00:06]} 38. e7 {[%clk 0:00:11]}  Bd6 {[%clk 0:00:04]} 39. Bxg8 {[%clk 0:00:11]}  Rxg8 {[%clk 0:00:03]} 40. Qxd6 {[%clk 0:00:11]} 1-0


[Site "https://www.chess.com"]

[Event "Titled Tuesday Blitz May 10 Early 2022"]
[White "Kruckenhauser, Arthur"]
[Black "Demin, Vladimir"]
[WhiteFideId "1642812"]
[BlackFideId "4167457"]
[WhiteElo "2243"]
[BlackElo "2455"]
[Result "1-0"]
[Round "08"]
[TimeControl "180+1"]
[Date "2022.05.11"]
[WhiteClock "0:01:34"]
[BlackClock "0:00:02"]

1. Nf3 {[%clk 0:03:00]}  d5 {[%clk 0:02:44]} 2. g3 {[%clk 0:03:00]}  Nd7 {[%clk 0:02:41]} 3. d4 {[%clk 0:02:59]}  Ngf6 {[%clk 0:02:40]} 4. b3 {[%clk 0:02:58]}  e6 {[%clk 0:02:40]} 5. Bg2 {[%clk 0:02:57]}  b5 {[%clk 0:02:39]} 6. O-O {[%clk 0:02:57]}  Be7 {[%clk 0:02:34]} 7. Bb2 {[%clk 0:02:57]}  O-O {[%clk 0:02:32]} 8. Nbd2 {[%clk 0:02:57]}  a5 {[%clk 0:02:26]} 9. a3 {[%clk 0:02:56]}  Ba6 {[%clk 0:02:23]} 10. Re1 {[%clk 0:02:55]}  c5 {[%clk 0:02:13]} 11. dxc5 {[%clk 0:02:54]}  Nxc5 {[%clk 0:02:12]} 12. Ra2 {[%clk 0:02:52]}  Nce4 {[%clk 0:02:07]} 13. e3 {[%clk 0:02:48]}  Rc8 {[%clk 0:02:00]} 14. Bf1 {[%clk 0:02:46]}  Qb6 {[%clk 0:01:49]} 15. Nxe4 {[%clk 0:02:43]}  Nxe4 {[%clk 0:01:49]} 16. Bd3 {[%clk 0:02:40]}  f5 {[%clk 0:01:41]} 17. Qa1 {[%clk 0:02:38]}  Bf6 {[%clk 0:01:41]} 18. Bxf6 {[%clk 0:02:36]}  Rxf6 {[%clk 0:01:35]} 19. Qe5 {[%clk 0:02:34]}  Nc5 {[%clk 0:00:58]} 20. Qd4 {[%clk 0:02:25]}  Rb8 {[%clk 0:00:47]} 21. b4 {[%clk 0:02:13]}  axb4 {[%clk 0:00:36]} 22. axb4 {[%clk 0:02:13]}  Na4 {[%clk 0:00:35]} 23. Ne5 {[%clk 0:02:01]}  Bc8 {[%clk 0:00:31]} 24. Qxb6 {[%clk 0:01:54]}  Rxb6 {[%clk 0:00:30]} 25. Bxb5 {[%clk 0:01:55]}  Rxb5 {[%clk 0:00:30]} 26. Rxa4 {[%clk 0:01:55]}  Rf8 {[%clk 0:00:29]} 27. c3 {[%clk 0:01:54]}  g5 {[%clk 0:00:28]} 28. Ra7 {[%clk 0:01:52]}  Bb7 {[%clk 0:00:26]} 29. Nd7 {[%clk 0:01:47]}  Rf7 {[%clk 0:00:25]} 30. Nc5 {[%clk 0:01:47]}  e5 {[%clk 0:00:20]} 31. Rd1 {[%clk 0:01:46]}  Bc6 {[%clk 0:00:12]} 32. Ra6 {[%clk 0:01:43]}  Rf6 {[%clk 0:00:10]} 33. Nd7 {[%clk 0:01:41]}  Re6 {[%clk 0:00:10]} 34. Nxe5 {[%clk 0:01:41]}  Rxe5 {[%clk 0:00:11]} 35. Rxc6 {[%clk 0:01:40]}  Rb7 {[%clk 0:00:10]} 36. Ra1 {[%clk 0:01:38]}  Kg7 {[%clk 0:00:10]} 37. Raa6 {[%clk 0:01:38]}  f4 {[%clk 0:00:09]} 38. gxf4 {[%clk 0:01:37]}  gxf4 {[%clk 0:00:10]} 39. Re6 {[%clk 0:01:35]}  Rf5 {[%clk 0:00:09]} 40. e4 {[%clk 0:01:34]}  dxe4 {[%clk 0:00:09]} 41. Rxe4 {[%clk 0:01:35]}  Rd7 {[%clk 0:00:06]} 42. Kg2 {[%clk 0:01:29]}  f3+ {[%clk 0:00:02]} 43. Kg3 {[%clk 0:01:29]}  Rd3 {[%clk 0:00:01]} 44. Re7+ {[%clk 0:01:27]}  Kf8 {[%clk 0:00:01]} 45. Rxh7 {[%clk 0:01:27]}  Kg8 {[%clk 0:00:02]} 46. Re7 {[%clk 0:01:25]}  Rxc3 {[%clk 0:00:01]} 47. Ra8+ {[%clk 0:01:25]}  Rf8 {[%clk 0:00:01]} 48. Rxf8+ {[%clk 0:01:25]}  Kxf8 {[%clk 0:00:02]} 49. Re3 {[%clk 0:01:25]}  Rc4 {[%clk 0:00:02]} 50. Rxf3+ {[%clk 0:01:26]}  Kg7 {[%clk 0:00:03]} 51. Rf4 {[%clk 0:01:27]}  Rc3+ {[%clk 0:00:03]} 52. f3 {[%clk 0:01:27]}  Kg6 {[%clk 0:00:04]} 53. h4 {[%clk 0:01:27]}  Rb3 {[%clk 0:00:05]} 54. Kg4 {[%clk 0:01:27]}  Rb1 {[%clk 0:00:05]} 55. h5+ {[%clk 0:01:28]}  Kh6 {[%clk 0:00:06]} 56. Rf6+ {[%clk 0:01:28]}  Kg7 {[%clk 0:00:05]} 57. Rb6 {[%clk 0:01:29]}  Rg1+ {[%clk 0:00:05]} 58. Kf5 {[%clk 0:01:29]}  Rb1 {[%clk 0:00:05]} 59. h6+ {[%clk 0:01:29]}  Kh7 {[%clk 0:00:06]} 60. Kg5 {[%clk 0:01:29]}  Rg1+ {[%clk 0:00:07]} 61. Kf5 {[%clk 0:01:29]}  Rf1 {[%clk 0:00:07]} 62. f4 {[%clk 0:01:29]}  Rb1 {[%clk 0:00:07]} 63. b5 {[%clk 0:01:30]}  Rb2 {[%clk 0:00:04]} 64. Kf6 {[%clk 0:01:30]}  Kxh6 {[%clk 0:00:03]} 65. f5 {[%clk 0:01:31]}  Kh7 {[%clk 0:00:03]} 66. Kf7 {[%clk 0:01:31]}  Rb1 {[%clk 0:00:02]} 67. f6 {[%clk 0:01:31]}  Rb2 {[%clk 0:00:02]} 68. Rb7 {[%clk 0:01:32]}  Kh8 {[%clk 0:00:01]} 69. b6 {[%clk 0:01:31]}  Rb1 {[%clk 0:00:02]} 70. Ke7 {[%clk 0:01:31]}  Re1+ {[%clk 0:00:02]} 71. Kd6 {[%clk 0:01:32]}  Rd1+ {[%clk 0:00:02]} 72. Kc6 {[%clk 0:01:32]}  Kg8 {[%clk 0:00:02]} 73. Rg7+ {[%clk 0:01:32]}  Kf8 {[%clk 0:00:02]} 74. b7 {[%clk 0:01:33]}  Rc1+ {[%clk 0:00:03]} 75. Kb6 {[%clk 0:01:33]}  Rb1+ {[%clk 0:00:03]} 76. Ka7 {[%clk 0:01:34]}  Ra1+ {[%clk 0:00:03]} 77. Kb8 {[%clk 0:01:34]}  Rb1 {[%clk 0:00:04]} 78. Kc8 {[%clk 0:01:34]}  Rb6 {[%clk 0:00:01]} 79. b8=Q {[%clk 0:01:34]}  Rxb8+ {[%clk 0:00:02]} 80. Kxb8 {[%clk 0:01:34]} 1-0


[Site "https://www.chess.com"]

[Event "Titled Tuesday Blitz May 10 Early 2022"]
[White "Lamaze, Simon"]
[Black "Kohler, Aran"]
[WhiteFideId "36069264"]
[BlackFideId "1002856"]
[WhiteElo "1999"]
[BlackElo "2306"]
[Result "1-0"]
[Round "08"]
[TimeControl "180+1"]
[Date "2022.05.11"]
[WhiteClock "0:01:41"]
[BlackClock "0:00:31"]

1. e4 {[%clk 0:03:00]}  e5 {[%clk 0:02:55]} 2. f4 {[%clk 0:02:59]}  Bc5 {[%clk 0:02:53]} 3. Nf3 {[%clk 0:02:59]}  Nf6 {[%clk 0:02:49]} 4. fxe5 {[%clk 0:02:56]}  Nxe4 {[%clk 0:02:47]} 5. d4 {[%clk 0:02:56]}  Bb6 {[%clk 0:02:44]} 6. Bd3 {[%clk 0:02:56]}  d5 {[%clk 0:02:43]} 7. O-O {[%clk 0:02:56]}  O-O {[%clk 0:02:42]} 8. Nbd2 {[%clk 0:02:54]}  Bf5 {[%clk 0:02:38]} 9. Qe2 {[%clk 0:02:52]}  Nxd2 {[%clk 0:02:23]} 10. Bxd2 {[%clk 0:02:52]}  Bxd3 {[%clk 0:02:23]} 11. Qxd3 {[%clk 0:02:51]}  h6 {[%clk 0:02:16]} 12. Rae1 {[%clk 0:02:48]}  Qe7 {[%clk 0:02:04]} 13. Kh1 {[%clk 0:02:34]}  Nc6 {[%clk 0:02:02]} 14. c3 {[%clk 0:02:32]}  Rae8 {[%clk 0:02:02]} 15. b4 {[%clk 0:02:29]}  Qe6 {[%clk 0:02:00]} 16. Nh4 {[%clk 0:02:26]}  Ne7 {[%clk 0:01:56]} 17. Qg3 {[%clk 0:02:18]}  Kh8 {[%clk 0:01:45]} 18. Rf3 {[%clk 0:02:11]}  Ng8 {[%clk 0:01:25]} 19. Ref1 {[%clk 0:02:06]}  Kh7 {[%clk 0:01:08]} 20. Nf5 {[%clk 0:02:00]}  g6 {[%clk 0:00:56]} 21. Nxh6 {[%clk 0:01:53]}  Nxh6 {[%clk 0:00:54]} 22. Qh4 {[%clk 0:01:53]}  g5 {[%clk 0:00:54]} 23. Bxg5 {[%clk 0:01:53]}  f5 {[%clk 0:00:52]} 24. exf6 {[%clk 0:01:51]}  Qf7 {[%clk 0:00:32]} 25. Qxh6+ {[%clk 0:01:46]}  Kg8 {[%clk 0:00:32]} 26. Rg3 {[%clk 0:01:46]}  Qh7 {[%clk 0:00:32]} 27. Bc1+ {[%clk 0:01:41]}  Kh8 {[%clk 0:00:31]} 28. Qg7+ {[%clk 0:01:41]} 1-0


[Site "https://www.chess.com"]